bitfinex/quotes_BTCUSD_20250108
["timestamp","ask_amount","ask_price","bid_price","bid_amount"]
[1736324469680,0.64020209,95957.0,95956.0,0.01]
[1736324471441,0.6402528,95957.0,95956.0,0.00730877]
[1736324472211,0.6484868,95957.0,95956.0,0.00730877]
[1736324472553,0.29937661,95946.0,95945.0,0.1581694]
[1736324472666,0.48445135,95946.0,95945.0,0.1581694]
[1736324472866,0.48445135,95946.0,95945.0,0.16159509]
[1736324473091,0.48445135,95946.0,95945.0,0.1581694]
[1736324473293,0.48445135,95946.0,95945.0,0.16159891]
[1736324473500,0.63108389,95946.0,95945.0,0.1581694]
[1736324475019,0.53095135,95946.0,95945.0,0.1581694]
[1736324475432,0.33575,95946.0,95945.0,0.1581694]
[1736324477314,0.21640443,95946.0,95945.0,0.1581694]
[1736324478249,0.21640443,95946.0,95945.0,0.16122697]
[1736324489811,0.00795443,95946.0,95945.0,0.16122697]
[1736324490015,0.208444,95949.0,95946.0,0.00907339]
[1736324490342,0.208444,95949.0,95947.0,0.06532039]
[1736324490618,0.4585757,95949.0,95947.0,0.00316039]
[1736324490993,0.4585757,95949.0,95945.0,0.1581694]
[1736324491197,0.4585757,95949.0,95946.0,0.0039419]
[1736324491399,0.4585757,95949.0,95945.0,0.1581694]
[1736324491609,0.208448,95947.0,95946.0,0.00389309]
[1736324491806,0.208448,95947.0,95945.0,0.1581694]
[1736324492019,0.208448,95947.0,95946.0,0.00383309]
[1736324492397,0.208448,95947.0,95945.0,0.1581694]
[1736324492609,0.208448,95947.0,95946.0,0.00383309]
[1736324492803,0.25676547,95947.0,95945.0,0.1581694]
[1736324493012,0.208448,95947.0,95946.0,0.00383309]
[1736324493207,0.208448,95947.0,95945.0,0.1581694]
[1736324493393,0.208448,95947.0,95946.0,0.00383309]
[1736324493599,0.208448,95947.0,95945.0,0.1581694]
[1736324494004,0.21744819,95947.0,95946.0,0.00383309]
[1736324494445,0.21744819,95947.0,95946.0,0.00383348]
[1736324494626,0.21744819,95947.0,95945.0,0.1581694]
[1736324494828,0.21744819,95947.0,95946.0,0.00383348]
[1736324495211,0.21744819,95947.0,95945.0,0.1581694]
[1736324495413,0.21744819,95947.0,95946.0,0.00383348]
[1736324495679,0.28088101,95947.0,95945.0,0.1581694]
[1736324495830,0.28088101,95947.0,95946.0,0.00383275]
[1736324496212,0.28088101,95947.0,95945.0,0.1581694]
[1736324496416,0.28088101,95947.0,95946.0,0.00383275]
[1736324496671,0.21744819,95947.0,95945.0,0.1581694]
[1736324496882,0.1283,95946.0,95945.0,0.07862215]
[1736324497202,0.68893775,95946.0,95945.0,0.05777715]
[1736324497541,0.78893775,95946.0,95945.0,0.05777715]
[1736324497761,0.29937861,95945.0,95944.0,5.5e-07]
[1736324497958,0.40365335,95945.0,95944.0,5.5e-07]
[1736324500823,0.50365335,95945.0,95944.0,5.5e-07]
[1736324501305,0.09092661,95936.0,95925.0,0.0001702]
[1736324501522,0.48090761,95932.0,95931.0,4e-07]
[1736324501730,0.68539508,95932.0,95931.0,4e-07]
[1736324504166,0.68539508,95932.0,95895.0,0.0001702]
[1736324504167,0.208559,95896.0,95895.0,0.0001702]
[1736324504772,0.291659,95896.0,95895.0,0.0001702]
[1736324504971,0.78466035,95896.0,95895.0,2e-07]
[1736324505181,0.86553635,95896.0,95895.0,2e-07]
[1736324505636,0.86553635,95896.0,95895.0,0.00050853]
[1736324505847,0.87459958,95896.0,95895.0,0.00050853]
[1736324506061,0.87459958,95896.0,95895.0,5.3e-07]
[1736324506266,0.21762223,95896.0,95895.0,5.3e-07]
[1736324506908,0.00906323,95896.0,95895.0,5.3e-07]
[1736324507110,0.208547,95902.0,95895.0,5.3e-07]
[1736324507111,0.208547,95902.0,95896.0,0.00907339]
[1736324507488,0.00904973,95913.0,95897.0,0.00315844]
[1736324507675,0.208554,95898.0,95897.0,0.00315844]
[1736324508097,0.417108,95898.0,95895.0,5.3e-07]
[1736324508271,0.2294094,95898.0,95897.0,0.00315844]
[1736324508474,0.2294094,95898.0,95895.0,5.3e-07]
[1736324508475,0.4379634,95898.0,95895.0,5.3e-07]
[1736324508660,0.208559,95896.0,95895.0,5.3e-07]
[1736324512063,0.288159,95896.0,95895.0,5.3e-07]
[1736324519149,0.208561,95895.0,95892.0,1.3e-07]
[1736324519344,0.208565,95893.0,95892.0,0.00015257]
[1736324520095,0.41283974,95893.0,95892.0,5.7e-07]
[1736324520298,0.60804109,95893.0,95892.0,5.7e-07]
[1736324520515,0.68364109,95893.0,95892.0,5.7e-07]
[1736324522022,0.39950261,95888.0,95887.0,7.7e-07]
[1736324522230,0.50377735,95888.0,95887.0,3.6e-07]
[1736324522792,0.40377735,95888.0,95887.0,3.6e-07]
[1736324523012,0.256204,95875.0,95874.0,9.6e-07]
[1736324523202,0.36047874,95875.0,95874.0,9.6e-07]
[1736324527074,0.21772014,95875.0,95874.0,9.6e-07]
[1736324532760,0.36769488,95875.0,95874.0,9.6e-07]
[1736324535608,0.09092661,95872.0,95837.0,0.00907339]
[1736324535851,0.208682,95840.0,95838.0,0.00772012]
[1736324536284,0.208685,95839.0,95828.0,0.0475]
[1736324536701,0.41737,95839.0,95828.0,0.0475]
[1736324537364,0.41737,95839.0,95835.0,0.00032341]
[1736324538177,0.208685,95839.0,95835.0,0.00032341]
[1736324538409,0.208674,95844.0,95835.0,0.00032341]
[1736324538625,0.208657,95851.0,95841.0,0.00907339]
[1736324538830,0.0087521,95855.0,95848.0,0.00907339]
[1736324539036,0.20865,95854.0,95848.0,0.00907339]
[1736324539244,0.43904021,95854.0,95849.0,0.00509979]
[1736324539735,0.43904021,95854.0,95848.0,0.00907339]
[1736324540123,0.43904021,95854.0,95849.0,0.00528514]
[1736324540427,0.41717444,95854.0,95849.0,0.00528514]
[1736324541064,0.20852444,95854.0,95849.0,0.00528514]
[1736324541222,0.208633,95862.0,95855.0,0.00907339]
[1736324541871,0.417271,95861.0,95855.0,0.00907339]
[1736324542201,0.417271,95861.0,95856.0,0.0052761]
[1736324542552,0.417271,95861.0,95855.0,0.00907339]
[1736324543782,0.20862,95868.0,95858.0,0.00907339]
[1736324543984,0.208593,95881.0,95862.0,0.00907339]
[1736324544183,0.208608,95874.0,95866.0,0.00907339]
[1736324544568,0.208608,95874.0,95867.0,0.00526189]
[1736324544979,0.417216,95874.0,95867.0,0.00526189]
[1736324545783,0.20862,95868.0,95867.0,0.00526189]
[1736324546975,0.208588,95883.0,95878.0,0.00907339]
[1736324547179,0.0465,95903.0,95869.0,0.0767]
[1736324547180,0.20857,95891.0,95879.0,0.00907339]
[1736324547357,0.20859,95882.0,95879.0,0.00907339]
[1736324547562,0.20859,95882.0,95880.0,0.00524192]
[1736324547769,0.208578,95887.0,95880.0,0.05948]
[1736324547983,0.208578,95887.0,95880.0,0.06855339]
[1736324548212,0.208578,95887.0,95881.0,0.00524063]
[1736324548661,0.02087301,95887.0,95881.0,0.00524063]
[1736324548871,0.02087301,95887.0,95880.0,0.06855339]
[1736324548872,0.208583,95885.0,95880.0,0.06855339]
[1736324549304,0.417166,95885.0,95880.0,0.06855339]
[1736324549511,0.417166,95885.0,95881.0,0.00524063]
[1736324549713,0.417166,95885.0,95880.0,0.06855339]
[1736324550962,0.208587,95883.0,95880.0,0.06855339]
[1736324553310,0.417174,95883.0,95880.0,0.05948]
[1736324553760,0.417174,95883.0,95881.0,0.00524063]
[1736324554005,0.417174,95883.0,95882.0,0.06092]
[1736324554172,0.208609,95873.0,95872.0,0.00907339]
[1736324554322,0.208609,95873.0,95872.0,0.32426813]
[1736324554539,0.208609,95873.0,95872.0,0.32952038]
[1736324554736,0.208601,95877.0,95873.0,0.15]
[1736324554939,0.208601,95877.0,95873.0,0.25427474]
[1736324555187,0.208601,95877.0,95874.0,0.00524967]
[1736324555639,0.2503198,95877.0,95875.0,0.06092]
[1736324555847,0.208621,95868.0,95860.0,0.0782]
[1736324556089,0.208621,95868.0,95863.0,0.00907339]
[1736324556249,0.208621,95868.0,95865.0,0.15]
[1736324556418,0.208621,95868.0,95867.0,0.15]
[1736324556630,0.24020066,95868.0,95867.0,0.06092]
[1736324556854,0.24020066,95868.0,95867.0,0.06617027]
[1736324557068,0.24020066,95868.0,95858.0,0.00907339]
[1736324557264,0.24020066,95868.0,95853.0,0.06092]
[1736324557265,0.208635,95861.0,95853.0,0.06092]
[1736324557459,0.20865,95854.0,95851.0,0.06092]
[1736324557797,0.208655,95852.0,95851.0,0.06092]
[1736324558443,0.2373505,95860.0,95841.0,0.00907339]
[1736324558444,0.208666,95847.0,95841.0,0.00907339]
[1736324558659,0.208666,95847.0,95844.0,0.00907339]
[1736324558832,0.208666,95847.0,95842.0,0.06092]
[1736324559032,0.208666,95847.0,95844.0,0.00907339]
[1736324560384,0.2503977,95847.0,95844.0,0.00907339]
[1736324560590,0.208666,95847.0,95844.0,0.00907339]
[1736324562114,0.209666,95847.0,95844.0,0.00907339]
[1736324562330,0.208679,95841.0,95836.0,0.00015261]
[1736324562588,0.417358,95841.0,95837.0,0.06092]
[1736324562799,0.0417347,95840.0,95837.0,0.06092]
[1736324562970,0.208683,95839.0,95837.0,0.06092]
[1736324564909,0.208679,95841.0,95837.0,0.06092]
[1736324565681,0.208679,95841.0,95837.0,0.06192]
[1736324566685,0.208679,95841.0,95837.0,0.06092]
[1736324566887,0.0417347,95840.0,95837.0,0.06092]
[1736324567086,0.208683,95839.0,95837.0,0.06092]
[1736324569672,0.209683,95839.0,95837.0,0.06092]
[1736324570300,0.208683,95839.0,95837.0,0.06092]
[1736324572448,0.001,95839.0,95837.0,0.06092]
[1736324572653,0.001,95839.0,95838.0,0.11334813]
[1736324572901,0.00949788,95851.0,95838.0,0.11334813]
[1736324573097,0.208657,95852.0,95838.0,0.11334813]
[1736324573307,0.001,95839.0,95838.0,0.11334813]
[1736324574716,0.001,95839.0,95838.0,0.11439142]
[1736324574982,0.208656,95852.0,95838.0,0.11439142]
[1736324575196,0.208656,95852.0,95839.0,0.00104329]
[1736324575404,0.001,95846.0,95840.0,0.10427474]
[1736324575886,0.417312,95852.0,95840.0,0.10427474]
[1736324576146,0.00970431,95861.0,95836.0,0.00015261]
[1736324576147,0.208665,95847.0,95846.0,0.00907339]
[1736324576350,0.001,95852.0,95843.0,0.06092]
[1736324576491,0.208672,95844.0,95843.0,0.06092]
[1736324577113,0.208672,95844.0,95841.0,0.00907339]
[1736324577322,0.208672,95844.0,95843.0,0.06092]
[1736324578080,0.208657,95851.0,95850.0,0.00907339]
[1736324578618,0.208657,95851.0,95845.0,0.00907339]
[1736324578853,0.417314,95851.0,95850.0,0.00907339]
[1736324579055,0.417314,95851.0,95847.0,0.00907339]
[1736324579338,0.417314,95851.0,95847.0,0.10427474]
[1736324579514,0.417314,95851.0,95850.0,0.00907339]
[1736324579712,0.417314,95851.0,95850.0,0.01007339]
[1736324580494,0.417314,95851.0,95850.0,0.001]
[1736324580688,0.417314,95851.0,95850.0,0.00907339]
[1736324581146,0.208657,95851.0,95850.0,0.00907339]
[1736324581517,0.208647,95856.0,95850.0,0.00907339]
[1736324581924,0.208656,95852.0,95850.0,0.00907339]
[1736324582144,0.208647,95856.0,95850.0,0.00907339]
[1736324582356,0.417294,95856.0,95850.0,0.00907339]
[1736324582692,0.208656,95852.0,95850.0,0.00907339]
[1736324583083,0.208656,95852.0,95850.0,0.01007339]
[1736324583486,0.208656,95852.0,95850.0,0.00907339]
[1736324583907,0.208656,95852.0,95850.0,0.01107339]
[1736324586609,0.29039,95882.0,95866.0,0.00907339]
[1736324586910,0.208591,95881.0,95879.0,0.00907339]
[1736324588064,0.062576,95880.0,95869.0,0.00907339]
[1736324588193,0.00948168,95881.0,95870.0,0.06024]
[1736324588394,0.208608,95874.0,95870.0,0.06024]
[1736324589478,0.208596,95879.0,95873.0,0.00907339]
[1736324589844,0.208607,95874.0,95873.0,0.00907339]
[1736324590449,0.20849976,95874.0,95873.0,0.00907339]
[1736324590777,0.20839311,95879.0,95873.0,0.00907339]
[1736324591420,0.208606,95875.0,95873.0,0.00907339]
[1736324591611,0.20839311,95879.0,95873.0,0.00907339]
[1736324591913,0.20839311,95879.0,95877.0,0.00907339]
[1736324592437,0.20839311,95879.0,95878.0,0.00907339]
[1736324593132,0.208585,95884.0,95879.0,0.00907339]
[1736324594169,0.417171,95884.0,95879.0,0.00907339]
[1736324594445,0.208585,95884.0,95879.0,0.00907339]
[1736324595465,0.417171,95884.0,95879.0,0.00907339]
[1736324595693,0.208585,95884.0,95879.0,0.00907339]
[1736324596135,0.208576,95889.0,95879.0,0.00907339]
[1736324596726,0.208576,95889.0,95879.0,0.01107339]
[1736324597168,0.208588,95883.0,95879.0,0.00907339]
[1736324597580,0.208588,95883.0,95879.0,0.01007339]
[1736324597787,0.417127,95883.0,95879.0,0.01007339]
[1736324599021,0.417127,95883.0,95879.0,0.00907339]
[1736324599199,0.417127,95883.0,95879.0,0.01107339]
[1736324601098,0.417127,95883.0,95879.0,0.002]
[1736324601099,0.208591,95881.0,95879.0,0.002]
[1736324602048,0.0774,95882.0,95873.0,0.00907339]
[1736324602252,0.208604,95875.0,95874.0,0.0602]
[1736324602667,0.208604,95875.0,95856.0,0.15]
[1736324602668,0.208604,95875.0,95872.0,0.0602]
[1736324602869,0.208624,95866.0,95861.0,0.00907339]
[1736324603097,0.208624,95866.0,95862.0,0.0602]
[1736324603510,0.417219,95873.0,95866.0,0.00907339]
[1736324603931,0.208619,95869.0,95866.0,0.00907339]
[1736324605022,0.208609,95873.0,95869.0,0.00907339]
[1736324606537,0.208609,95873.0,95870.0,0.0602]
[1736324607087,0.208604,95876.0,95870.0,0.0602]
[1736324607225,0.208604,95876.0,95872.0,0.00907339]
[1736324607659,0.208605,95875.0,95872.0,0.00907339]
[1736324610238,0.41721,95875.0,95872.0,0.00907339]
[1736324610461,0.208605,95875.0,95872.0,0.00907339]
[1736324613695,0.208598,95879.0,95872.0,0.00907339]
[1736324613849,0.21819784,95883.0,95878.0,0.00907339]
[1736324613850,0.208587,95883.0,95878.0,0.00907339]
[1736324615649,0.417175,95883.0,95878.0,0.00907339]
[1736324616556,0.417175,95883.0,95881.0,0.03]
[1736324620387,0.0095927,95884.0,95881.0,0.03]
[1736324620627,0.208565,95894.0,95890.0,0.00907339]
[1736324620779,0.208565,95894.0,95890.0,0.17246813]
[1736324621463,0.208565,95894.0,95890.0,0.1793955]
[1736324622339,0.00986396,95891.0,95890.0,0.1793955]
[1736324622676,0.00015211,95891.0,95890.0,0.1793955]
[1736324624767,0.01004855,95891.0,95890.0,0.1793955]
[1736324625177,0.00015211,95891.0,95890.0,0.1793955]
[1736324626453,0.00015211,95891.0,95890.0,0.3293955]
[1736324627491,0.00015211,95891.0,95890.0,0.3523955]
[1736324628072,0.00015211,95891.0,95890.0,0.46018569]
[1736324628274,0.00015211,95891.0,95890.0,0.4278955]
[1736324629084,0.00015211,95891.0,95890.0,0.4298955]
[1736324629560,0.00015211,95891.0,95890.0,0.4278955]
[1736324629917,0.00015211,95891.0,95890.0,0.70529296]
[1736324630097,0.00015211,95891.0,95890.0,0.70729296]
[1736324630623,0.0001708,95922.0,95898.0,0.36757465]
[1736324630822,0.0001708,95922.0,95898.0,1.14499959]
[1736324631030,0.0001708,95922.0,95898.0,1.15186489]
[1736324632236,0.0001708,95922.0,95898.0,1.11961469]
[1736324632889,0.0001708,95922.0,95898.0,1.01961469]
[1736324633294,0.0001708,95922.0,95898.0,1.12561469]
[1736324633528,0.0001708,95922.0,95898.0,1.18469469]
[1736324634113,0.208507,95920.0,95898.0,0.81251469]
[1736324634313,0.208507,95920.0,95898.0,0.87159469]
[1736324634516,0.208548,95901.0,95898.0,0.12616069]
[1736324634869,0.208548,95901.0,95898.0,0.17622004]
[1736324635575,0.208548,95901.0,95898.0,0.17022004]
[1736324635807,0.417096,95901.0,95898.0,0.17322004]
[1736324636154,0.417096,95901.0,95898.0,0.17924069]
[1736324636155,0.208548,95901.0,95898.0,0.17924069]
[1736324636360,0.417096,95901.0,95898.0,0.0068653]
[1736324636561,0.06275116,95899.0,95898.0,0.0689453]
[1736324636739,0.06275116,95899.0,95898.0,0.003]
[1736324637357,0.0001706,95899.0,95898.0,0.003]
[1736324638560,0.0001706,95899.0,95894.0,0.05908]
[1736324638849,0.417109,95898.0,95894.0,0.05908]
[1736324639019,0.417109,95898.0,95895.0,0.00684398]
[1736324639236,0.417109,95898.0,95894.0,0.05908]
[1736324640138,0.417109,95898.0,95895.0,0.05908]
[1736324644470,0.0001706,95899.0,95898.0,0.00902065]
[1736324644817,0.0001706,95899.0,95898.0,0.17921356]
[1736324645773,0.0001706,95899.0,95898.0,0.17019291]
[1736324645978,0.2087226,95899.0,95898.0,0.07493882]
[1736324646557,0.2087226,95899.0,95898.0,0.06810065]
[1736324647015,0.2087226,95899.0,95898.0,0.06910065]
[1736324647191,0.0001706,95899.0,95898.0,0.06910065]
[1736324647545,0.0001706,95899.0,95898.0,0.06691817]
[1736324647747,0.0001706,95899.0,95898.0,0.00783817]
[1736324647953,0.0001706,95899.0,95898.0,0.001]
[1736324648154,0.0001706,95899.0,95898.0,0.05868]
[1736324649371,0.0001706,95899.0,95898.0,0.05768]
[1736324649757,0.0001706,95899.0,95898.0,0.05868]
[1736324650163,0.0001706,95899.0,95898.0,0.05768]
[1736324653025,0.0477,95890.0,95873.0,0.00902065]
[1736324653222,0.0477,95890.0,95860.0,0.0796]
[1736324653223,0.208585,95884.0,95882.0,0.05768]
[1736324653661,0.41717,95884.0,95881.0,0.00015211]
[1736324656096,0.42717627,95884.0,95881.0,0.00015211]
[1736324656711,0.21859127,95884.0,95881.0,0.00015211]
[1736324658837,0.208585,95884.0,95881.0,0.00015211]
[1736324659394,0.208576,95888.0,95882.0,0.03]
[1736324659602,0.0477,95890.0,95882.0,0.03]
[1736324660045,0.04633,95890.0,95882.0,0.03]
[1736324660451,0.208574,95889.0,95882.0,0.03]
[1736324661473,0.04633,95890.0,95882.0,0.03]
[1736324661474,0.0815,95891.0,95884.0,0.00902065]
[1736324662868,0.0815,95891.0,95885.0,0.05772]
[1736324664522,0.00960656,95894.0,95885.0,0.05772]
[1736324664844,0.208543,95904.0,95891.0,0.00902065]
[1736324664980,0.208543,95904.0,95893.0,0.00902065]
[1736324665185,0.20852,95914.0,95894.0,0.31283774]
[1736324665186,0.0801,95912.0,95894.0,0.31283774]
[1736324665389,0.208542,95904.0,95898.0,0.00902065]
[1736324665630,0.208552,95900.0,95894.0,0.10427474]
[1736324665834,0.208552,95900.0,95888.0,0.00902065]
[1736324666055,0.208552,95900.0,95890.0,0.15]
[1736324666264,0.208552,95900.0,95893.0,0.001]
[1736324666463,0.208552,95900.0,95893.0,0.10527474]
[1736324666663,0.208554,95898.0,95893.0,0.10527474]
[1736324666985,0.208554,95898.0,95893.0,0.10427474]
[1736324667324,0.208542,95904.0,95895.0,0.00902065]
[1736324667524,0.208552,95900.0,95893.0,0.10427474]
[1736324667728,0.208554,95898.0,95895.0,0.00902065]
[1736324668383,0.208565,95893.0,95890.0,0.15902065]
[1736324668558,0.208557,95897.0,95895.0,0.05772]
[1736324671212,0.0001706,95899.0,95895.0,0.05772]
[1736324671670,0.208554,95898.0,95895.0,0.05772]
[1736324672003,0.208554,95898.0,95896.0,0.05772]
[1736324672204,0.0001706,95899.0,95898.0,0.00902065]
[1736324672657,0.0001706,95899.0,95898.0,0.11329539]
[1736324673063,0.0001706,95899.0,95898.0,0.26329539]
[1736324675821,0.0001706,95899.0,95898.0,0.26529539]
[1736324676437,0.0001706,95899.0,95898.0,0.26329539]
[1736324676591,0.0001706,95899.0,95898.0,0.26629539]
[1736324679020,0.0001706,95899.0,95898.0,0.26329539]
[1736324679205,0.0001706,95899.0,95898.0,0.26629539]
[1736324679723,0.0001706,95899.0,95898.0,0.26329539]
[1736324679929,0.0001706,95899.0,95898.0,0.32057539]
[1736324680077,0.0001706,95899.0,95898.0,0.32357539]
[1736324680622,0.0001706,95899.0,95898.0,0.32057539]
[1736324680914,0.0001706,95899.0,95898.0,0.32357539]
[1736324685399,0.00021171,95912.0,95899.0,0.15]
[1736324685536,0.208526,95911.0,95902.0,0.00902065]
[1736324685726,0.208526,95911.0,95904.0,0.15]
[1736324685933,0.208526,95911.0,95905.0,0.10427474]
[1736324687225,0.208537,95907.0,95903.0,0.05728]
[1736324687428,0.208537,95907.0,95905.0,0.001]
[1736324688306,0.1253,95906.0,95905.0,0.001]
[1736324689090,0.1253,95906.0,95903.0,0.05728]
[1736324689445,0.208539,95905.0,95903.0,0.05928]
[1736324689976,0.208539,95905.0,95903.0,0.05728]
[1736324690172,0.208539,95905.0,95896.0,0.00902065]
[1736324690398,0.208552,95900.0,95886.0,0.15]
[1736324690617,0.208552,95900.0,95898.0,0.05728]
[1736324691006,0.20855,95900.0,95899.0,0.05728]
[1736324691573,0.28785,95900.0,95899.0,0.05728]
[1736324691772,0.4964,95900.0,95897.0,0.08728]
[1736324693039,0.28785,95900.0,95897.0,0.08728]
[1736324693435,0.28785,95900.0,95897.0,0.03]
[1736324693781,0.28785,95900.0,95897.0,0.08728]
[1736324694007,0.4964,95900.0,95897.0,0.08728]
[1736324694396,0.28785,95900.0,95897.0,0.08728]
[1736324694948,0.4964,95900.0,95897.0,0.08728]
[1736324695153,0.28785,95900.0,95897.0,0.08728]
[1736324696034,0.50652263,95900.0,95897.0,0.08728]
[1736324696396,0.29797263,95900.0,95897.0,0.08728]
[1736324697402,0.50652263,95900.0,95897.0,0.08728]
[1736324697740,0.29797263,95900.0,95897.0,0.08728]
[1736324699503,0.29797263,95900.0,95897.0,0.03]
[1736324699709,0.29797263,95900.0,95898.0,0.05728]
[1736324701793,0.21867263,95900.0,95898.0,0.05728]
[1736324715805,0.21854714,95900.0,95898.0,0.05728]
[1736324719244,0.208545,95903.0,95898.0,0.06630065]
[1736324720384,0.01005496,95906.0,95905.0,0.00902065]
[1736324720590,0.208515,95917.0,95912.0,0.00902065]
[1736324721360,0.208515,95917.0,95913.0,0.00902065]
[1736324721562,0.2086748,95922.0,95917.0,0.00902065]
[1736324721775,0.20881265,95922.0,95918.0,0.05728]
[1736324721947,0.208505,95921.0,95918.0,0.05728]
[1736324722315,0.41701,95921.0,95918.0,0.05728]
[1736324730564,0.20852,95914.0,95913.0,0.00902065]
[1736324730762,0.20852,95914.0,95913.0,0.06630065]
[1736324732907,0.208505,95921.0,95918.0,0.00902065]
[1736324733111,0.00030865,95922.0,95921.0,0.00902065]
[1736324736451,0.00030865,95922.0,95921.0,0.11329539]
[1736324736634,0.00030865,95922.0,95921.0,0.38839539]
[1736324738281,0.00030865,95922.0,95921.0,0.39039539]
[1736324738887,0.00030865,95922.0,95921.0,0.38839539]
[1736324739089,0.00030865,95922.0,95921.0,0.39039539]
[1736324740409,0.00030865,95922.0,95921.0,0.44763539]
[1736324740733,0.00025865,95922.0,95921.0,0.39039539]
[1736324740890,0.00025865,95922.0,95921.0,0.44763539]
[1736324741210,0.00025865,95922.0,95921.0,0.44563539]
[1736324741412,0.00025865,95922.0,95921.0,0.44863539]
[1736324741940,0.00025865,95922.0,95921.0,0.44563539]
[1736324742347,0.00025865,95922.0,95921.0,0.44963539]
[1736324743636,0.00025865,95922.0,95921.0,0.39239539]
[1736324743847,0.00025865,95922.0,95921.0,0.44963539]
[1736324744675,0.00025865,95922.0,95921.0,0.32453539]
[1736324744817,0.00025865,95922.0,95921.0,0.26729539]
[1736324745429,0.00025865,95922.0,95921.0,0.17453539]
[1736324745807,0.07995865,95922.0,95921.0,0.17053539]
[1736324745998,0.07995865,95922.0,95921.0,0.17253539]
[1736324746976,0.07995865,95922.0,95921.0,0.06826065]
[1736324747397,0.07995865,95922.0,95921.0,0.06626065]
[1736324747756,0.07995865,95922.0,95921.0,0.05924]
[1736324747757,0.12675865,95922.0,95921.0,0.05924]
[1736324748163,0.12675865,95922.0,95921.0,0.05724]
[1736324748391,0.208504,95921.0,95919.0,0.00902065]
[1736324748610,0.208504,95921.0,95920.0,0.05724]
[1736324748806,0.12675865,95922.0,95914.0,0.00902065]
[1736324749021,0.12675865,95922.0,95912.0,0.03]
[1736324749022,0.0789,95914.0,95912.0,0.03]
[1736324749340,0.0789,95914.0,95900.0,0.00902065]
[1736324749511,0.417096,95901.0,95897.0,0.00902065]
[1736324749674,0.417096,95901.0,95898.0,0.05724]
[1736324750084,0.22450706,95901.0,95898.0,0.06626065]
[1736324750287,0.22450706,95901.0,95898.0,0.05724]
[1736324750687,0.22450706,95901.0,95899.0,0.05724]
[1736324750688,0.06175906,95901.0,95899.0,0.05724]
[1736324750927,0.06175906,95901.0,95900.0,0.05724]
[1736324751127,0.06175906,95901.0,95894.0,0.00902065]
[1736324751330,0.27030706,95901.0,95900.0,0.05724]
[1736324751901,0.34740706,95901.0,95900.0,0.05724]
[1736324752102,0.34740706,95901.0,95900.0,0.05824]
[1736324752838,0.55595506,95901.0,95898.0,0.05724]
[1736324753255,0.208561,95895.0,95894.0,0.00902065]
[1736324753457,0.208561,95895.0,95894.0,0.06626065]
[1736324755562,0.34740706,95901.0,95894.0,0.06626065]
[1736324756070,0.208559,95896.0,95894.0,0.06626065]
[1736324757985,0.1229,95901.0,95900.0,0.00902065]
[1736324758192,0.208543,95904.0,95900.0,0.00902065]
[1736324758539,0.22432473,95904.0,95900.0,0.00902065]
[1736324759363,0.43286773,95904.0,95900.0,0.00902065]
[1736324760401,0.22432473,95904.0,95900.0,0.00902065]
[1736324761208,0.43286773,95904.0,95900.0,0.00902065]
[1736324763526,0.38286773,95904.0,95900.0,0.00902065]
[1736324764905,0.208557,95897.0,95895.0,0.00902065]
[1736324765318,0.208557,95897.0,95896.0,0.00902065]
[1736324769545,0.38286773,95904.0,95900.0,0.00902065]
[1736324770675,0.38286773,95904.0,95901.0,0.0572]
[1736324773698,0.208559,95896.0,95895.0,0.00902065]
[1736324773926,0.208559,95896.0,95895.0,0.06622065]
[1736324774338,0.01578173,95904.0,95887.0,0.00902065]
[1736324774339,0.0791,95895.0,95887.0,0.00902065]
[1736324774514,0.208572,95890.0,95887.0,0.00902065]
[1736324774857,0.208572,95890.0,95888.0,0.0572]
[1736324775059,0.208572,95890.0,95889.0,0.00902065]
[1736324775798,0.20870978,95890.0,95888.0,0.0572]
[1736324776208,0.20870978,95890.0,95888.0,0.06622065]
[1736324777942,0.20870978,95890.0,95889.0,0.001]
[1736324778329,0.20870978,95890.0,95888.0,0.06622065]
[1736324778735,0.20870978,95890.0,95889.0,0.0572]
[1736324781316,0.20870978,95890.0,95889.0,0.0582]
[1736324783356,0.20870978,95890.0,95889.0,0.06722065]
[1736324784105,0.20870978,95890.0,95889.0,0.06622065]
[1736324784448,0.20870978,95890.0,95889.0,0.06722065]
[1736324785099,0.20870978,95890.0,95889.0,0.06622065]
[1736324785317,0.20870978,95890.0,95889.0,0.06722065]
[1736324786052,0.00013778,95890.0,95889.0,0.17149539]
[1736324787502,0.00013778,95890.0,95889.0,0.17049539]
[1736324787703,0.00013778,95890.0,95889.0,0.17149539]
[1736324787863,0.00013778,95890.0,95889.0,0.1725381]
[1736324788267,0.00013778,95890.0,95889.0,0.1715381]
[1736324788679,0.00013778,95890.0,95889.0,0.1725381]
[1736324789359,0.00013778,95890.0,95889.0,0.1715381]
[1736324790623,0.00013778,95890.0,95889.0,0.1735381]
[1736324791057,8.778e-05,95890.0,95889.0,0.1715381]
[1736324791513,8.778e-05,95890.0,95889.0,0.1735381]
[1736324791892,8.778e-05,95890.0,95889.0,0.1715381]
[1736324792302,8.778e-05,95890.0,95889.0,0.1745381]
[1736324793192,8.778e-05,95890.0,95889.0,0.3245381]
[1736324793392,8.778e-05,95890.0,95889.0,0.32349539]
[1736324794327,8.778e-05,95890.0,95889.0,0.32049539]
[1736324794733,8.778e-05,95890.0,95889.0,0.32249539]
[1736324795161,8.778e-05,95890.0,95889.0,0.32049539]
[1736324795575,8.778e-05,95890.0,95889.0,0.32349539]
[1736324796298,8.778e-05,95890.0,95889.0,0.32049539]
[1736324797248,8.778e-05,95890.0,95889.0,0.42049539]
[1736324797892,8.778e-05,95890.0,95889.0,0.42349539]
[1736324798370,8.778e-05,95890.0,95889.0,0.42049539]
[1736324798768,8.778e-05,95890.0,95889.0,0.42349539]
[1736324799012,8.778e-05,95890.0,95889.0,0.50309539]
[1736324799166,8.778e-05,95890.0,95889.0,0.68022353]
[1736324799569,8.778e-05,95890.0,95889.0,0.68422353]
[1736324801089,8.778e-05,95890.0,95889.0,0.68022353]
[1736324801286,8.778e-05,95890.0,95889.0,0.68622353]
[1736324801931,8.778e-05,95890.0,95889.0,0.68022353]
[1736324802379,8.778e-05,95890.0,95889.0,0.68622353]
[1736324802585,8.778e-05,95890.0,95889.0,1.03702353]
[1736324802787,8.778e-05,95890.0,95889.0,1.03102353]
[1736324804253,8.778e-05,95890.0,95889.0,1.03702353]
[1736324804862,8.778e-05,95890.0,95889.0,1.03102353]
[1736324805280,8.778e-05,95890.0,95889.0,1.03802353]
[1736324806077,8.778e-05,95890.0,95889.0,1.57842353]
[1736324807279,8.778e-05,95890.0,95889.0,1.57142353]